Cogmind - Beta 16 @@@ ROGUE MODE // 2026.01.01 @ 02:32:22 Player: kim.jet.wav Result: Self-destructed Performance ------------- Evolutions (2) 1000 Regions Visited (5) 1000 Robots Destroyed (18) 90 Value Destroyed (261) 261 Prototype IDs (23) 460 Alien Tech Used (0) 0 Bonus (300) 300 TOTAL SCORE: 3111 Bonus ------- Aligned with FarCom 300 Cogmind --------- Core Integrity 511/550 Matter 5/300 Energy 125/125 System Corruption 0% Temperature Warm (148) Movement Walking (120) Location -8/Materials Parts ------- > --- POWER (2) -------- Light Ion Engine > --- PROPULSION (3) --- Improved Carbon-fiber Leg Improved Carbon-fiber Leg Improved Carbon-fiber Leg > --- UTILITY (3) ------ Medium Storage Unit Sensor Array Modified TNC > --- WEAPON (3) ------- Medium Laser Heavy Ion Cannon Grenade Launcher > --- INVENTORY (10) --- Aluminum Leg Aluminum Leg Aluminum Leg Aluminum Leg Seismic Detector ECM Suite EM Pulse Gun EM Shotgun Plasma Cutter Peak State ------------ > --- POWER ------------ Light Ion Engine Light Ion Engine > --- PROPULSION ------- Improved Carbon-fiber Leg Improved Carbon-fiber Leg Improved Carbon-fiber Leg > --- UTILITY ---------- Medium Storage Unit Sensor Array Modified TNC > --- WEAPON ----------- EM Pulse Gun Medium Laser Heavy Ion Cannon > --- INVENTORY -------- Aluminum Leg Aluminum Leg Aluminum Leg Aluminum Leg Seismic Detector ECM Suite EM Shotgun Grenade Launcher Plasma Cutter [Rating: 29] Favorites ----------- Power Light Ion Engine Engine Light Ion Engine Propulsion Aluminum Leg Leg Aluminum Leg Utility Medium Storage Unit Device Seismic Detector Storage Medium Storage Unit Processor Modified TNC Weapon EM Shotgun Energy Gun EM Shotgun Energy Cannon Heavy Ion Cannon Launcher Grenade Launcher Build | -11 -10 -10 -10 -9 -8 ------- Run | Yrd Mat Min Exi Min Mat Slots Evolved 4 | . . . . . 4 Power 1 | . . . . . 1 Propulsion 1 | . . . . . 1 Utility 1 | . . . . . 1 Weapon 1 | . . . . . 1 Parts Attached 19 | 6 5 . 1 . 7 Power 2 | 1 . . . . 1 Engine 2 | 1 . . . . 1 Core . | . . . . . . Reactor . | . . . . . . Propulsion 6 | 2 . . . . 4 Treads . | . . . . . . Leg 6 | 2 . . . . 4 Wheel . | . . . . . . Hover . | . . . . . . Flight . | . . . . . . Utility 5 | 2 1 . 1 . 1 Device 2 | 1 . . . . 1 Storage 2 | 1 1 . . . . Processor 1 | . . . 1 . . Hackware . | . . . . . . Protection . | . . . . . . Artifact . | . . . . . . Weapon 6 | 1 4 . . . 1 Energy Gun 4 | 1 3 . . . . Energy Cannon 1 | . . . . . 1 Ballistic Gun . | . . . . . . Ballistic Cannon . | . . . . . . Launcher 1 | . 1 . . . . Special Weapon . | . . . . . . Impact Weapon . | . . . . . . Slashing Weapon . | . . . . . . Piercing Weapon . | . . . . . . Special Melee Weapon . | . . . . . . Unidentified Prototypes . | . . . . . . Parts Lost 1 | . . . . . 1 Power 1 | . . . . . 1 Propulsion . | . . . . . . Utility . | . . . . . . Weapon . | . . . . . . Highest Loss Streak 1 | . . . . . 1 To Critical Strikes . | . . . . . . Average Backups 6 | . 4 8 8 9 5 Power . | . 1 1 1 1 . Propulsion 1 | . . 2 2 2 1 Utility 1 | . . 2 2 3 2 Weapon 1 | . 1 2 2 2 1 Tool/Special . | . . . . . . Unused Backups 3 | . . . . . 3 Power . | . . . . . . Propulsion 1 | . . . . . 1 Utility 1 | . . . . . 1 Weapon . | . . . . . . Tool/Special 1 | . . . . . 1 Average Slot Usage (%) 99 | . 99 100 100 100 99 Engine 15 | . 14 14 14 14 18 Leg 27 | . 28 28 28 28 26 Device 10 | . 14 14 10 . 8 Storage 12 | . 14 14 14 14 9 Processor 5 | . . . 3 14 9 Energy Gun 25 | . 26 14 28 28 24 Launcher 1 | . . 14 . . 1 Peak Build Rating 29 | 6 8 8 14 14 29 Average Rating 11 | 4 7 8 9 14 17 On Entrance 8 | . 6 8 8 14 14 Avg Prop Armor Cover (%) 14 | 14 . . . . . Naked Turns . | . . . . . . Heaviest Build 30 | 10 19 19 19 18 30 Greatest Support 54 | 20 20 20 20 20 54 Greatest Overweight (x) 2 | 2 . . . . . Average Overweight (x) . | . . . . . . Largest Inventory Capacity 10 | 8 10 10 10 10 10 Average Capacity 9 | 7 8 10 10 10 10 Most Carried 9 | 1 8 8 9 9 9 Average Carried 6 | . 4 8 8 9 5 Final Capacity 10 | 8 10 10 10 10 10 Final Carried 9 | 1 8 8 9 9 9 Class Distribution -------------------- 68% | Mutant 31% | Skirmisher Dominant Class ---------------- Mutant | -10/Materials Mutant | -10/Mines Mutant | -10/Exiles Mutant | -9/Mines Skirmisher | -8/Materials Resources | -11 -10 -10 -10 -9 -8 ----------- Run | Yrd Mat Min Exi Min Mat Matter Collected 270 | 260 10 . . . . Remotely . | . . . . . . Salvage Created 463 | 106 116 182 . . 59 Parts 28 | 3 5 9 . . 11 Haulers Intercepted . | . . . . . . Recyclers Shooed 2 | 1 . 1 . . . Parts Field Recycled . | . . . . . . Retrieved Matter . | . . . . . . Parts Self-Destructed . | . . . . . . Prevented . | . . . . . . Parts Restored . | . . . . . . Kills | -11 -10 -10 -10 -9 -8 ------- Run | Yrd Mat Min Exi Min Mat Combat Hostiles Destroyed 11 | . 2 5 . . 4 Guns 3 | . . 2 . . 1 Cannons 1 | . . . . . 1 AOE 7 | . 2 3 . . 2 Classes Destroyed 7 | 2 3 1 . . 1 Worker 2 | . 1 1 . . . Builder 1 | . . . . . 1 Tunneler 1 | 1 . . . . . Recycler 2 | 1 . 1 . . . Watcher 1 | . 1 . . . . Swarmer 7 | . . 3 . . 4 Grunt 4 | . 2 2 . . . Best Kill Streak 4 | 1 2 4 . . 4 Combat Bots Only 3 | . 2 3 . . 3 Max Kills in Single Turn 2 | 1 2 2 . . 2 Gunslinging . | . . . . . . Exploded 2 | . 2 1 . . 1 Melee . | . . . . . . Uniques/NPCs Destroyed . | . . . . . . Combat | -11 -10 -10 -10 -9 -8 -------- Run | Yrd Mat Min Exi Min Mat Hostile Shots Fired 63 | . . 19 . . 44 Missed 21 | . . 9 . . 12 Hits 42 | . . 10 . . 32 Projectile 42 | . . 10 . . 32 Damage Taken 364 | . . 95 . . 269 Core 72 | . . 33 . . 39 Absorbed by Shields . | . . . . . . Core Remaining (%) 93 | 100 . . . 86 . Volleys Fired 34 | 13 2 10 . . 9 Largest 3 | 1 2 2 . . 3 Hottest 125 | 40 85 70 . . 125 Shots Fired 55 | 13 4 18 . . 20 Gun 41 | 13 3 10 . . 15 Cannon 3 | . . . . . 3 Launcher 11 | . 1 8 . . 2 Special . | . . . . . . Kinetic . | . . . . . . Thermal 27 | 13 2 . . . 12 Explosive 11 | . 1 8 . . 2 Electromagnetic 17 | . 1 10 . . 6 Robot Hit Streak 5 | 5 2 4 . . 5 Robot Miss Streak 6 | 1 1 4 . . 6 Penetration Max . | . . . . . . Secondary Targets . | . . . . . . Shots Hit Robots 25 | 10 2 5 . . 8 Core Hits 25 | 3 5 10 . . 7 Critical Kills . | . . . . . . Critical Parts Destroyed . | . . . . . . Critical Strikes . | . . . . . . Melee Attacks . | . . . . . . Impact . | . . . . . . Slashing . | . . . . . . Piercing . | . . . . . . Sneak Attacks . | . . . . . . Combat Hostiles . | . . . . . . Follow-up Attacks . | . . . . . . Damage Inflicted 1023 | 107 153 463 . . 300 Guns 276 | 107 29 72 . . 68 Cannons 81 | . . . . . 81 Explosions 666 | . 124 391 . . 151 Melee . | . . . . . . Ramming . | . . . . . . Kinetic . | . . . . . . Thermal 259 | 107 11 . . . 141 Explosive 642 | . 124 391 . . 127 Electromagnetic 122 | . 18 72 . . 32 Impact . | . . . . . . Slashing . | . . . . . . Piercing . | . . . . . . Highest Corruption . | . . . . . . Average Corruption . | . . . . . . Corruption Purged . | . . . . . . Corruption Blocked . | . . . . . . Overload Shots . | . . . . . . Overflow Damage 48 | . 8 8 . . 32 Projectiles 6 | . . . . . 6 Explosions 42 | . 8 8 . . 26 Melee . | . . . . . . Knockbacks . | . . . . . . Impact . | . . . . . . Kinetic . | . . . . . . Secondary . | . . . . . . Self-Inflicted Damage . | . . . . . . Shots . | . . . . . . Rammed . | . . . . . . Targets Rammed . | . . . . . . Kicked . | . . . . . . Crushed . | . . . . . . Highest Temperature 162 | 20 24 36 . . 162 Average Temperature 40 | 18 10 12 . . 74 Received Heat Transfer 33 | . . 24 . . 9 Siege Activations . | . . . . . . Martial Activations . | . . . . . . Shielding Activations . | . . . . . . Robots Disrupted . | . . . . . . Combat Hostiles . | . . . . . . Robots Corrupted . | . . . . . . Combat Hostiles . | . . . . . . Parts Fried . | . . . . . . Impact Corruptions . | . . . . . . Robots Melted . | . . . . . . Combat Hostiles . | . . . . . . Parts Melted . | . . . . . . Heat Transferred 497 | 250 25 . . . 222 Parts Sabotaged . | . . . . . . Parts Stolen . | . . . . . . Parts Stripped . | . . . . . . Power Chain Reactions 1 | . . . . . 1 Alert | -11 -10 -10 -10 -9 -8 ------- Run | Yrd Mat Min Exi Min Mat Maximum Alert Level . | . . . . . . Low Security (%) 100 | 100 100 100 . 100 100 Level 1 . | . . . . . . Level 2 . | . . . . . . Level 3 . | . . . . . . Level 4 . | . . . . . . Level 5 . | . . . . . . High Security . | . . . . . . Max Security . | . . . . . . Peak Influence 141 | 5 45 141 . . 85 Initial . | . . . . . . Average 15 | . 4 54 . . 13 Influence Increases 383 | 10 63 171 . . 139 Destroy 0b10 Robot/C 220 | . 40 100 . . 80 Destroy 0b10 Robot/NC 35 | 10 10 10 . . 5 Destroy Leader 42 | . 2 20 . . 20 Successful Hack 6 | . 6 . . . . Destroy Structure 50 | . 5 26 . . 19 Lose Combat Pursuer 30 | . . 15 . . 15 Influence Decreases 332 | 10 63 60 111 . 88 Entered New Map 111 | . . . 111 . . Time Decay 211 | 10 63 60 . . 78 Lost Part 10 | . . . . . 10 Squads Dispatched . | . . . . . . Investigation . | . . . . . . Extermination . | . . . . . . Reinforcement . | . . . . . . Assault . | . . . . . . Garrison . | . . . . . . Intercept . | . . . . . . Searches Triggered . | . . . . . . Construction Impeded . | . . . . . . Haulers Reinforced . | . . . . . . Active Scanning Responses . | . . . . . . Cargo Convoy Interrupts . | . . . . . . Stealth | -11 -10 -10 -10 -9 -8 --------- Run | Yrd Mat Min Exi Min Mat Distress Signals . | . . . . . . Communications Jammed . | . . . . . . Distress Signals . | . . . . . . Times Spotted 25 | . 10 5 . . 10 Peak Tracking Total 8 | . 4 3 . . 8 Tactical Retreats 2 | . . 1 . . 1 Traps | -11 -10 -10 -10 -9 -8 ------- Run | Yrd Mat Min Exi Min Mat Traps Triggered . | . . . . . . Indirectly . | . . . . . . Trap Hack Attempts . | . . . . . . Triggered . | . . . . . . Disarmed . | . . . . . . Reprogrammed . | . . . . . . Reused . | . . . . . . Traps Extracted . | . . . . . . Installed . | . . . . . . Triggered . | . . . . . . Machines | -11 -10 -10 -10 -9 -8 ---------- Run | Yrd Mat Min Exi Min Mat Machines Disabled . | . . . . . . Max in Single Turn . | . . . . . . Machines Repaired . | . . . . . . Machines Dismantled . | . . . . . . Machines Sabotaged . | . . . . . . Overloaded Fab Kills . | . . . . . . Hacking | -11 -10 -10 -10 -9 -8 --------- Run | Yrd Mat Min Exi Min Mat Machines Accessed 6 | . 1 . 5 . . Terminals 1 | . 1 . . . . Fabricators . | . . . . . . Repair Stations . | . . . . . . Recycling Units . | . . . . . . Scanalyzers . | . . . . . . Garrison Access . | . . . . . . Total Hacks 51 | . 1 . 50 . . Successful 51 | . 1 . 50 . . Failed . | . . . . . . Catastrophic . | . . . . . . Database Lockouts . | . . . . . . Manual 3 | . 1 . 2 . . Terminals 1 | . 1 . . . . Fabricators . | . . . . . . Repair Stations . | . . . . . . Recycling Units . | . . . . . . Scanalyzers . | . . . . . . Garrison Access . | . . . . . . Terminal Hacks 50 | . . . 50 . . Record 49 | . . . 49 . . Proto ID Catalog 1 | . . . 1 . . Fabricator Hacks . | . . . . . . Repair Station Hacks . | . . . . . . Recycling Unit Hacks . | . . . . . . Scanalyzer . | . . . . . . Garrison Access Hacks . | . . . . . . Unauthorized Hacks 1 | . 1 . . . . Terminals 1 | . 1 . . . . Assimilate 1 | . 1 . . . . Fabricators . | . . . . . . Repair Stations . | . . . . . . Recycling Units . | . . . . . . Scanalyzers . | . . . . . . Garrison Access . | . . . . . . Data Cores Recovered . | . . . . . . Used . | . . . . . . Hacking Detections . | . . . . . . Full Trace Events . | . . . . . . Feedback Events . | . . . . . . Feedback Blocked . | . . . . . . Robot Schematics Acquired . | . . . . . . Robots Built . | . . . . . . Authchips . | . . . . . . Time . | . . . . . . Total Robot Build Rating . | . . . . . . Part Schematics Acquired . | . . . . . . Parts Built . | . . . . . . Authchips . | . . . . . . Time . | . . . . . . Total Part Build Rating . | . . . . . . Part Studies Acquired . | . . . . . . Parts Repaired . | . . . . . . Time . | . . . . . . Parts Recycled . | . . . . . . Recycled Matter . | . . . . . . Retrieved Matter . | . . . . . . Retrieved Components . | . . . . . . Parts Scanalyzed . | . . . . . . Part Schematics Acquired . | . . . . . . Parts Damaged . | . . . . . . Bothacking | -11 -10 -10 -10 -9 -8 ------------ Run | Yrd Mat Min Exi Min Mat Used RIF Installer . | . . . . . . Robots Hacked . | . . . . . . Non-combat . | . . . . . . Combat . | . . . . . . Robot Hacks Applied . | . . . . . . Relay Couplers Released . | . . . . . . Fabnet Peak Effective % . | . . . . . . Robots Rewired . | . . . . . . Allies Hacked . | . . . . . . Hacks Repelled . | . . . . . . Allies | -11 -10 -10 -10 -9 -8 -------- Run | Yrd Mat Min Exi Min Mat Total Allies . | . . . . . . Largest Group . | . . . . . . Highest-Rated Group . | . . . . . . Highest-Rated Ally . | . . . . . . Total Orders . | . . . . . . Ally Attacks . | . . . . . . Total Damage . | . . . . . . Kills . | . . . . . . Allies Corrupted . | . . . . . . Allies Melted . | . . . . . . Intel | -11 -10 -10 -10 -9 -8 ------- Run | Yrd Mat Min Exi Min Mat Active Infowar (turns) 2446 | 28 455 257 734 168 804 Sensors 801 | . . . . . 801 Seismic 1282 | 28 455 257 542 . . T.N.C. 1164 | . . . 192 168 804 Robot Analysis Total . | . . . . . . Derelict Logs Recovered . | . . . . . . Drone Launches . | . . . . . . Drone Recoveries . | . . . . . . Exploration | -11 -10 -10 -10 -9 -8 ------------- Run | Yrd Mat Min Exi Min Mat Turns Passed 2508 | 89 455 257 735 168 804 Spaces Moved 1602 | 47 322 189 608 140 296 Core 17 | 17 . . . . . Treads . | . . . . . . Legs 1585 | 30 322 189 608 140 296 Wheels . | . . . . . . Hover . | . . . . . . Flight . | . . . . . . Fastest Speed 50 | 50 120 120 120 120 120 Average Speed 119 | 113 120 120 120 120 120 Slowest Speed 150 | 150 120 120 120 120 120 Overloaded Moves . | . . . . . . Propulsion Burnouts . | . . . . . . Robots Hopped . | . . . . . . Potential Cave-ins . | . . . . . . Cave-ins Triggered . | . . . . . . Exploration Rate (%) 39 | 4 48 44 94 36 11 Regions Visited 5 Branch Regions 3 Pre-discovered Areas 1 | . . . 1 . . Known Exits Taken . | . . . . . . Unknown Exits Taken 5 | 1 1 1 1 1 . Scrap Searched . | . . . . . . Spaces Dug 10 | . . . . . 10 Terrain Destroyed 70 | . 4 45 . . 21 Melee . | . . . . . . Projectile . | . . . . . . AOE 70 | . 4 45 . . 21 Terrain Rammed . | . . . . . . Walls Destroyed . | . . . . . . Machines Disabled . | . . . . . . Actions | -11 -10 -10 -10 -9 -8 --------- Run | Yrd Mat Min Exi Min Mat Total 2126 | 66 385 200 612 140 723 Wait 456 | . 46 1 2 1 406 Move 1597 | 46 321 188 607 139 296 Hop . | . . . . . . Pick Up 10 | 1 8 . 1 . . Fast Attach 8 | 6 1 . . . 1 Attach 4 | . . . . . 4 Detach 1 | . . . . . 1 Swap 14 | . 5 1 2 . 6 Drop 2 | . 2 . . . . Fire 34 | 13 2 10 . . 9 Melee . | . . . . . . Ram . | . . . . . . Kick . | . . . . . . Crush . | . . . . . . Escape Stasis . | . . . . . . Rewire . | . . . . . . Trap . | . . . . . . Miscellaneous . | . . . . . . Route ------- -11/Scrapyard -10/Materials -10/Mines (discovered 2 exits: [*Mat] / *Exi) -10/Exiles (discovered 2 exits: [*Min x2]) -9/Mines -8/Materials History --------- Turn | Location | Event 14 | -11/Scrapyard | Discovered new exit (range 15) 90 | -11/Scrapyard | Entered Materials 306 | -10/Materials | Build established: Mutant 432 | -10/Materials | Discovered new exit (range 14) 545 | -10/Materials | Entered Mines 613 | -10/Mines | Discovered new exit (range 8) 796 | -10/Mines | Deemed a non-threat by the Exiles lab entrance 797 | -10/Mines | Discovered new exit (range 5) 802 | -10/Mines | Entered Exiles 822 | -10/Exiles | Discovered new exit (range 15) 853 | -10/Exiles | Met 8R-AWN 880 | -10/Exiles | Met EX-HEX 997 | -10/Exiles | Met EX-DEC 1027 | -10/Exiles | Visited The Gauntlet 1193 | -10/Exiles | Learned location of Zion (-7) 1243 | -10/Exiles | Met EX-BIN 1267 | -10/Exiles | Aligned with FarCom system 1268 | -10/Exiles | Given EX-Vault access code 1334 | -10/Exiles | Opened EX-Vault 1343 | -10/Exiles | Found Modified TNC 1370 | -10/Exiles | Warned to stay clear of 0b10 Research branches 1514 | -10/Exiles | Discovered new exit (range 14) 1537 | -10/Exiles | Left Exiles lab with Modified TNC 1537 | -10/Exiles | Entered Mines 1548 | -9/Mines | Met a Derelict bent on vengeance 1694 | -9/Mines | Discovered new exit (range 10) 1705 | -9/Mines | Entered Materials 1705 | -8/Materials | Evolved 4 slots: Power x1, Propulsion x1, Utility x1, Weapon x1 1995 | -8/Materials | Build established: Skirmisher 2509 | -8/Materials | Self-destructed Last Messages --------------- 02331_ U-05 Engineer lays Concrete. 02331_ K-01 Serf collects debris. 02332_ Chain reaction triggered in Lgt. Ion Engine. 02332_ S-10 Pest destroyed. 02332_ U-05 Engineer lays Concrete. 02333_ U-05 Engineer builds a Wall. 02334_ U-05 Engineer lays Concrete. 02335_ K-01 Serf collects debris. 02337_ U-05 Engineer lays Concrete. 02339_ U-05 Engineer builds a Wall. 02387_ Acquired Hvy. Ion Cannon. 02392_ U-05 Engineer lays Concrete. 02394_ U-05 Engineer builds a Wall. 02405_ U-05 Engineer lays Concrete. 02407_ U-05 Engineer builds a Wall. 02412_ U-05 Engineer lays Concrete. 02415_ U-05 Engineer builds a Wall. 02500_ S-10 Pest destroyed. 02503_ Destroyed Flight Unit. 02508_ Lgt. Ion Engine destroyed. Map ----- +----------------------------------------------------+ | ?????????????????????????????????????????????????? | | ?????????????????????????????????????????????????? | | ?????????????????????????????????????????????????? | | ?????????????????????????????????????????????????? | | ?????????????????????????????????????????????????? | | ?????????????????????????????????????????????????? | | ??????????????????? ? ???????????????????????????? | | ?????????????????? ?a????????????????????????? | | ?????????????????? " ??????????????????????????? | | ?????????????????? ???g??????????????????????? | | ?????????????????? ??????????????????????????? | | ??????????????????# #??????????????????????????# | | ??????????????????# #??????????????????????????# | | ??????????????????# #??????????????????????????# | | ??????????????????# +??????????????????????????# | | ??????????????????# #??????????????????????????# | | ????????? ????????# #??????????????????????????# | | ????????? ####### #####?????########???####### | | ????????? ]]#?????# ##### # | | ????????? ] #?????#! + % | | ????????? #?????# ###### % = | | ?????????????###### = #?????# #???# =% | | ??????????????????# !!#?????# #???? | | | ??????????????????# bY !!#####?# #?????# " | | ??????????????????# ##############+######### T | | ??????????????????# us%=@ [%= " | | ??????????????????# gss = | | ??????????????????# g | | ??????????????????################# ######### | | ???????????????????????#########??# #???????? | | ??????????????????????????????????#! !#???????? | | ??????????????????????????????????##!!!!##???????? | | ???????????????????????????????????######????????? | | ?????????????????????????????????????????????????? | | | | | | | | | | | | | | | | | | | | | | | | | | | | | | | | | +----------------------------------------------------+ Best States ------------- Heat Dissipation 31 Energy Generation 15 Energy Capacity 150 Matter Stores 300 Matter Capacity 300 Sight Range 16 Robot Scan Range 14 Terrain Scan Density 10 Evasion (%) 55 Item Schematics ----------------- None Robot Schematics ------------------ None Fabricated ------------ Nothing Repaired ---------- Nothing Studied --------- None Alien Tech Used ----------------- None Achievements -------------- Sixth Sense Challenges ------------ None Game ------ Seed ConstructDispersionStreamer Manual? 0 Play Time 00:53:05 Cumulative 50.5 hours Start 2025.12.16 @ 17:58:12 End 2026.01.01 @ 02:32:22 Sessions 13 Manual Loads 0 Difficulty Rogue Special Mode None Game No. 218 Rogue 218 Adventurer 0 Explorer 0 Win Type - Total 0 Types 0/0/0/0/0/0/0/0/0/0 Lore% 27 Gallery% 21 Achievement% 16 Wizard Run 0 Options --------- Layout 0 ASCII 1 Keyboard 1 Movement Numpad Keybinds 1 Fullscreen 1 Font 18/X11 Map View 76x50 Zoom Use 0% Tactical HUD 1 Map Filters NONE Filters NONE Steam 1 RUN: 353ef268-e542-4a55-8bb0-19a00acb59fc